Cogmind - Beta 11.2 @@@ ROGUE MODE // 2023.01.18 @ 14:41:33 Player: Red Box Result: Destroyed by as-31151 with Assembled Focal Cannon Performance ------------- Evolutions (4) 2000 Regions Visited (12) 2400 Robots Destroyed (116) 580 Value Destroyed (4414) 4414 Prototype IDs (63) 1260 Alien Tech Used (0) 0 Bonus (3468) 3468 TOTAL SCORE: 14122 Bonus ------- High Alert Combat Kills 159 Follower Combat Kills 944 Aligned with FarCom 300 Met Imprinter 300 Destroyed Z-Imprinter 1000 Triggered Deep Caves Wall 500 Exposed GOLEM Chamber 500 Friendly Fire -235 Cogmind --------- Core Integrity 0/850 Matter 205/300 Energy 28/100 System Corruption 0% Temperature Cool (12) Movement Core (150) Ox2 Location -6/Deep Caves Parts ------- > --- POWER (1) -------- (None) > --- PROPULSION (3) --- Assembled Alloy Leg > --- UTILITY (9) ------ Experimental Heat Sink Advanced Targeting Computer GOLEM Unit > --- WEAPON (2) ------- Antimatter Cannon > --- INVENTORY (5) ---- Improved Cryofiber Web Improved Cryofiber Web Guided Missile Launcher Peak State ------------ > --- POWER ------------ Zionite Light DM Reactor > --- PROPULSION ------- Assembled Alloy Leg Armored Huge Wheel > --- UTILITY ---------- Experimental Heat Sink High-capacity Storage Unit Advanced Energy Well Advanced Targeting Computer Advanced Particle Charger Hardened Heavy Armor Plating GOLEM Unit > --- WEAPON ----------- Assembled Focal Cannon Assembled Focal Cannon > --- INVENTORY -------- Improved Cryofiber Web Improved Cryofiber Web Experimental Heat Sink Experimental Heat Sink Zionite Biocell Improved Medium Armor Plating Medium Reactive Plating EM Disruption Field Trap Reconfigurator Hacking Drone Bay Zionite Laser-S Zionite Laser-S Zionite Laser-M Cooled Particle Cannon Cooled Plasma Cannon Antimatter Cannon Improved Proton Missile Launcher Guided Missile Launcher Impact Mace [Rating: 104] Favorites ----------- Power Cooled Deuterium Engine Engine Cooled Deuterium Engine Power Core Enhanced Nuclear Core Reactor Zionite Light DM Reactor Propulsion Armored Huge Wheel Treads Medium Treads Leg Aluminum Leg Wheel Armored Huge Wheel Utility High-capacity Storage Unit Device Particle Charger Storage High-capacity Storage Unit Processor Advanced Targeting Computer Hackware Improved Hacking Suite Protection Improved Medium Armor Plating Weapon Cooled Particle Cannon Energy Gun Medium Laser Energy Cannon Cooled Particle Cannon Ballistic Gun Flak Gun Ballistic Cannon Mini Assault Cannon Launcher Proton Missile Launcher Special Weapon Mining Laser Impact Weapon Impact Mace Slashing Weapon Scythe Build | -11 -10 -10 -10 -9 -8 -7 -7 -6 -6 -6 -6 -6 ------- Run | Scr Mat Min Exi Min Mat Fac Sto Fac Low Low Zio Dee Slots Evolved 8 | . . . . . 4 2 . 2 . . . . Power . | . . . . . . . . . . . . . Propulsion 1 | . . . . . . . . 1 . . . . Utility 7 | . . . . . 4 2 . 1 . . . . Weapon . | . . . . . . . . . . . . . Parts Attached 278 | 7 7 10 1 1 29 80 27 52 3 13 14 34 Power 27 | 1 1 2 1 . 3 7 2 1 1 . 2 6 Engine 15 | 1 1 1 1 . 2 1 2 1 1 . 1 3 Core 10 | . . 1 . . 1 6 . . . . 1 1 Reactor 2 | . . . . . . . . . . . . 2 Propulsion 24 | 2 . 5 . . 4 6 . 4 . 1 . 2 Treads 1 | . . . . . . . . . . . . 1 Leg 5 | 2 . 3 . . . . . . . . . . Wheel 18 | . . 2 . . 4 6 . 4 . 1 . 1 Hover . | . . . . . . . . . . . . . Flight . | . . . . . . . . . . . . . Utility 136 | 2 3 2 . 1 9 37 7 43 2 5 8 17 Device 83 | 1 1 . . 1 4 24 6 35 . 3 2 6 Storage 8 | 1 2 1 . . . . . . . . 1 3 Processor 5 | . . . . . 3 2 . . . . . . Hackware 1 | . . . . . . . . 1 . . . . Protection 39 | . . 1 . . 2 11 1 7 2 2 5 8 Artifact . | . . . . . . . . . . . . . Weapon 91 | 2 3 1 . . 13 30 18 4 . 7 4 9 Energy Gun 18 | 2 2 1 . . 4 2 2 . . 1 . 4 Energy Cannon 32 | . . . . . 2 15 3 3 . 5 2 2 Ballistic Gun 3 | . . . . . 3 . . . . . . . Ballistic Cannon 16 | . . . . . . 5 8 1 . . 1 1 Launcher 9 | . . . . . 1 1 5 . . . 1 1 Special Weapon 1 | . 1 . . . . . . . . . . . Impact Weapon 11 | . . . . . 3 6 . . . 1 . 1 Slashing Weapon 1 | . . . . . . 1 . . . . . . Piercing Weapon . | . . . . . . . . . . . . . Special Melee Weapon . | . . . . . . . . . . . . . Unidentified Prototypes 25 | . . . . . 3 6 5 1 . . 1 9 Parts Lost 35 | . 2 2 . . 8 2 . 3 . 6 . 12 Power 6 | . 1 1 . . 1 . . 1 . . . 2 Propulsion 6 | . . 1 . . 2 . . . . 1 . 2 Utility 13 | . . . . . 1 1 . 2 . 3 . 6 Weapon 10 | . 1 . . . 4 1 . . . 2 . 2 Highest Loss Streak 8 | . 2 1 . . 3 1 . 2 . 4 . 8 To Critical Strikes 1 | . . 1 . . . . . . . . . . Average Slot Usage (%) 92 | . 98 99 100 100 95 94 91 92 92 81 85 80 Engine 5 | . 13 9 14 14 6 . 4 5 6 6 3 5 Core 2 | . . 3 . . 2 6 2 . . . 2 . Leg 2 | . 28 16 . . . . . . . . . . Wheel 11 | . . 10 28 28 17 9 7 13 13 8 13 12 Device 19 | . 13 . . . 17 23 25 25 21 20 20 19 Storage 7 | . 14 14 14 14 9 7 7 6 6 6 6 6 Processor 12 | . . . . . 20 16 15 13 13 13 13 9 Protection 11 | . . 13 14 14 3 12 12 12 17 12 12 11 Energy Gun 5 | . 27 28 28 28 6 . 2 . . . . 1 Energy Cannon 6 | . . . . . 3 9 1 6 13 12 11 10 Ballistic Cannon 2 | . . . . . . . 10 6 . . . . Impact Weapon 1 | . . . . . 5 3 . . . . . . Naked Turns . | . . . . . . . . . . . . . Heaviest Build 116 | 13 29 51 49 49 75 95 103 107 109 109 116 111 Greatest Support 44 | 20 20 20 20 20 32 32 28 44 40 40 38 38 Greatest Overweight (x) 6 | 1 1 2 2 2 6 3 3 3 2 3 3 3 Average Overweight (x) 1 | . . 1 2 2 2 2 2 2 2 2 1 1 Largest Inventory Capacity 20 | 8 15 20 20 20 20 20 20 20 20 20 20 20 Average Capacity 19 | 7 12 18 20 20 20 20 20 20 20 20 20 19 Most Carried 20 | 8 15 20 20 20 20 20 20 20 20 20 20 20 Average Carried 18 | 4 11 18 19 19 18 19 19 19 19 18 19 19 Final Capacity 20 | 8 15 20 20 20 20 20 20 20 20 20 20 5 Final Carried 20 | 8 15 20 20 19 20 20 20 20 20 20 20 4 Class Distribution -------------------- 84% | Mutant 9% | Skirmisher 3% | Commander-Mutant Dominant Class ---------------- Mutant | -10/Materials Mutant | -10/Mines Mutant | -10/Exiles Mutant | -9/Mines Mutant | -8/Materials Mutant | -7/Factory Mutant | -7/Storage Skirmisher | -6/Factory Mutant | -6/Lower Caves Mutant | -6/Lower Caves Mutant | -6/Zion Mutant | -6/Deep Caves Resources | -11 -10 -10 -10 -9 -8 -7 -7 -6 -6 -6 -6 -6 ----------- Run | Scr Mat Min Exi Min Mat Fac Sto Fac Low Low Zio Dee Matter Collected 4005 | 209 121 95 . . 348 802 730 763 285 218 161 273 Remotely . | . . . . . . . . . . . . . Salvage Created 5011 | 12 387 255 . . 547 1116 388 578 204 673 . 851 Parts 234 | 5 19 18 . . 29 69 27 27 4 24 . 12 Haulers Intercepted 1 | . 1 . . . . . . . . . . . Recyclers Shooed 2 | . . 1 . . . 1 . . . . . . Parts Field Recycled . | . . . . . . . . . . . . . Retrieved Matter . | . . . . . . . . . . . . . Parts Self-Destructed 27 | . . . . . . . . . 3 22 2 . Prevented 1 | . . . . . . . . . . 1 . . Kills | -11 -10 -10 -10 -9 -8 -7 -7 -6 -6 -6 -6 -6 ------- Run | Scr Mat Min Exi Min Mat Fac Sto Fac Low Low Zio Dee Combat Hostiles Destroyed 139 | . 11 9 . . 14 24 9 14 4 12 . 42 Melee 8 | . . . . . 1 6 . . . . . 1 Guns 32 | . 11 9 . . 12 . . . . . . . Cannons 57 | . . . . . . 15 7 14 4 9 . 8 AOE 30 | . . . . . . . 2 . . . . 28 Classes Destroyed 18 | 1 3 1 . . 3 3 . . . 3 . 4 Worker 1 | . . . . . . 1 . . . . . . Builder 3 | . . . . . . 2 1 . . . . . Tunneler 2 | 1 1 . . . . . . . . . . . Hauler 1 | . 1 . . . . . . . . . . . Recycler 3 | . . 1 . . . 2 . . . . . . Minesweeper 1 | . . . . . . . . . . 1 . . Watcher 6 | . . . . . 2 3 1 . . . . . Swarmer 31 | . 5 8 . . 4 12 . . 1 1 . . Grunt 28 | . 6 1 . . 4 . 3 8 1 5 . . Brawler 3 | . . . . . . . . . . 3 . . Duelist 2 | . . . . . . . . . . 2 . . Sentry 11 | . . . . . 4 1 3 1 1 1 . . Hunter 3 | . . . . . 2 1 . . . . . . Programmer 19 | . . . . . . 10 3 5 1 . . . Z-Light 1 | . . . . . . . . . . . . 1 Assembler 1 | . . . . . . . . . . . . 1 Assembled 36 | . . . . . . . . . . . . 36 Golem 5 | . . . . . . . . . . . . 5 Best Kill Streak 34 | 1 5 3 . . 5 4 2 3 2 4 . 34 Combat Bots Only 34 | . 5 3 . . 5 4 2 3 2 4 . 34 Max Kills in Single Turn 11 | 1 1 2 . . 1 2 1 1 1 1 . 11 Gunslinging 1 | . . 1 . . . . . . . . . . Exploded 11 | . . . . . . . 1 . . . . 11 Melee 1 | . . . . . 1 1 . . . . . 1 Uniques/NPCs Destroyed 1 | . . . . . . . . . . . . 1 Z-Imprinter (-6/Deep Caves) Combat | -11 -10 -10 -10 -9 -8 -7 -7 -6 -6 -6 -6 -6 -------- Run | Scr Mat Min Exi Min Mat Fac Sto Fac Low Low Zio Dee Damage Taken 9439 | . 421 333 . . 693 1293 492 799 227 1561 . 3620 Core 1477 | . 164 43 . . 174 154 82 103 12 61 . 684 Absorbed by Shields 767 | . . . . . 16 354 256 141 . . . . Redirected to Shielding 2 | . . 2 . . . . . . . . . . Regen/Repaired (Parts) 1877 | . 97 . . . . 112 . 402 . . 1266 . Core Remaining (%) 62 | 100 . . . 17 68 . 66 . . . . . Volleys Fired 368 | 3 36 27 . . 30 40 67 36 28 40 4 57 Largest 2 | 2 2 2 . . 2 2 2 2 2 2 1 2 Hottest 195 | 80 100 106 . . 136 150 138 120 180 180 90 195 Shots Fired 659 | 6 69 54 . . 60 76 89 79 54 79 4 89 Gun 195 | 6 68 54 . . 58 . 2 . . . . 7 Cannon 453 | . . . . . 2 76 81 79 54 79 4 78 Launcher 10 | . . . . . . . 6 . . . . 4 Special 1 | . 1 . . . . . . . . . . . Kinetic 144 | . . . . . 30 2 50 59 . . . 3 Thermal 505 | 6 69 54 . . 30 74 33 20 54 79 4 82 Explosive 4 | . . . . . . . . . . . . 4 Electromagnetic 6 | . . . . . . . 6 . . . . . Robot Hit Streak 19 | 3 15 5 . . 18 11 8 8 14 19 . 15 Robot Miss Streak 10 | 1 7 4 . . 10 3 2 3 . 3 . 4 Penetration Max . | . . . . . . . . . . . . . Secondary Targets 5 | . 1 3 . . 1 . . . . . . . Max Gunslinging Chain 1 | . 1 1 . . 1 . . . . . . . Shots Hit Robots 394 | 4 47 27 . . 61 63 30 45 13 43 . 61 Core Hits 224 | 1 19 14 . . 28 29 17 20 3 15 . 78 Critical Kills 4 | . . . . . 1 1 . . . 1 . 1 Critical Parts Destroyed 10 | . . . . . 3 3 . . . 1 . 3 Critical Strikes 27 | . 2 7 . . 5 4 1 2 . 2 . 4 Burn 10 | . 2 7 . . 1 . . . . . . . Meltdown 1 | . . . . . . . . . . 1 . . Destroy 1 | . . . . . 1 . . . . . . . Blast 3 | . . . . . . . 1 2 . . . . Smash 12 | . . . . . 3 4 . . . 1 . 4 Melee Attacks 77 | . . . . . 17 43 . . . 7 . 10 Impact 75 | . . . . . 17 41 . . . 7 . 10 Slashing 2 | . . . . . . 2 . . . . . . Piercing . | . . . . . . . . . . . . . Sneak Attacks 2 | . . . . . 2 . . . . . . . Combat Hostiles 1 | . . . . . 1 . . . . . . . Follow-up Attacks 1 | . . . . . 1 . . . . . . . Damage Inflicted 14817 | 44 588 355 . . 1201 2589 1308 1402 617 1683 . 5030 Guns 2023 | 44 588 355 . . 840 . . . . . . 196 Cannons 8002 | . . . . . 25 1395 1039 1402 617 1394 . 2130 Explosions 2471 | . . . . . . . 269 . . . . 2202 Melee 2321 | . . . . . 336 1194 . . . 289 . 502 Ramming . | . . . . . . . . . . . . . Kinetic 2625 | . . . . . 460 49 918 1108 . . . 90 Thermal 7400 | 44 588 355 . . 405 1346 121 294 617 1394 . 2236 Explosive 2202 | . . . . . . . . . . . . 2202 Electromagnetic 269 | . . . . . . . 269 . . . . . Impact 2321 | . . . . . 336 1194 . . . 289 . 502 Slashing . | . . . . . . . . . . . . . Piercing . | . . . . . . . . . . . . . Highest Corruption 9 | . . . . . . 4 1 8 8 9 9 . Average Corruption 5 | . . . . . . 1 1 6 8 8 9 . Corruption Purged 5 | . . . . . . 5 . . . . . . Corruption Blocked . | . . . . . . . . . . . . . Effects 195 | . . . . . . 20 15 88 26 44 2 . Message Errors 51 | . . . . . . 5 3 27 5 11 . . Matter Fused 40 | . . . . . . 3 2 15 7 12 1 . Heat Flow Errors 25 | . . . . . . 3 4 9 2 6 1 . Energy Discharges 22 | . . . . . . 5 3 7 3 4 . . Parts Rejected 3 | . . . . . . . . 1 . 2 . . Data Loss (minor) 19 | . . . . . . . 1 13 2 3 . . Data Loss (major) 8 | . . . . . . . . 5 3 . . . Misfires 21 | . . . . . . 4 1 10 3 3 . . Alerts 2 | . . . . . . . 1 . . 1 . . Weapon Failures 4 | . . . . . . . . 1 1 2 . . Overload Shots 39 | . . . . . . . 2 1 8 9 3 16 Effects 5 | . . . . . . . . 1 2 . . 2 Energy Bleed 3 | . . . . . . . . 1 1 . . 1 Heat Surge 1 | . . . . . . . . . . . . 1 Short Circuit 1 | . . . . . . . . . 1 . . . Overflow Damage 1200 | . . . . . 51 377 32 17 57 148 . 518 Projectiles 364 | . . . . . . 17 30 17 57 29 . 214 Explosions 47 | . . . . . . . 2 . . . . 45 Melee 789 | . . . . . 51 360 . . . 119 . 259 Knockbacks 17 | . . . . . 1 4 3 9 . . . . Impact 3 | . . . . . 1 2 . . . . . . Kinetic 14 | . . . . . . 2 3 9 . . . . Secondary . | . . . . . . . . . . . . . Self-Inflicted Damage 60 | . . . . . . . 8 . . . . 52 Shots 2 | . . . . . . . 1 . . . . 1 Rammed . | . . . . . . . . . . . . . Targets Rammed . | . . . . . . . . . . . . . Kicked . | . . . . . . . . . . . . . Crushed . | . . . . . . . . . . . . . Highest Temperature 276 | 54 260 276 . . 42 274 205 230 88 147 . 188 Average Temperature 66 | 29 65 83 . . 10 82 26 74 33 66 . 69 Received Heat Transfer 1865 | . 126 42 . . 236 64 122 217 102 465 . 491 Siege Activations . | . . . . . . . . . . . . . Robots Corrupted . | . . . . . . . . . . . . . Combat Hostiles . | . . . . . . . . . . . . . Parts Fried 8 | . . . . . . 8 . . . . . . Impact Corruptions 30 | . . . . . 2 16 . . . 5 . 7 Robots Melted 1 | . . . . . . . . . . 1 . . Combat Hostiles . | . . . . . . . . . . . . . Parts Melted 22 | . 2 6 . . . 3 . . 2 6 . 3 Heat Transferred 10500 | 100 1685 1554 . . 999 1739 174 296 559 1473 . 1921 Parts Sabotaged . | . . . . . . . . . . . . . Parts Stolen . | . . . . . . . . . . . . . Parts Stripped . | . . . . . . . . . . . . . Power Chain Reactions . | . . . . . . . . . . . . . Missiles Intercepted . | . . . . . . . . . . . . . Alert | -11 -10 -10 -10 -9 -8 -7 -7 -6 -6 -6 -6 -6 ------- Run | Scr Mat Min Exi Min Mat Fac Sto Fac Low Low Zio Dee Peak Influence 659 | 5 188 156 . . 338 646 659 336 . . . . Initial 293 | . 3 . . . . 20 293 277 . . . . Average 245 | 1 85 45 . . 102 295 500 231 . . . . Maximum Alert Level 2 | . . . . . 1 2 2 1 . . . . Low Security (%) 44 | 100 100 100 . 100 69 32 . 26 . . . . Level 1 32 | . . . . . 30 34 17 73 . . . . Level 2 23 | . . . . . . 33 82 . . . . . Level 3 . | . . . . . . . . . . . . . Level 4 . | . . . . . . . . . . . . . Level 5 . | . . . . . . . . . . . . . High Security . | . . . . . . . . . . . . . Max Security . | . . . . . . . . . . . . . Squads Dispatched 31 | . 2 . . . 5 8 6 9 . 1 . . Investigation 7 | . 1 . . . 3 . 1 2 . . . . Extermination 15 | . . . . . . 8 3 4 . . . . Reinforcement 3 | . 1 . . . 1 . 1 . . . . . Assault 2 | . . . . . . . 1 . . 1 . . Garrison 4 | . . . . . 1 . . 3 . . . . Intercept . | . . . . . . . . . . . . . Searches Triggered . | . . . . . . . . . . . . . Construction Impeded 1 | . . . . . . . 1 . . . . . Haulers Reinforced . | . . . . . . . . . . . . . Active Scanning Responses . | . . . . . . . . . . . . . Cargo Convoy Interrupts . | . . . . . . . . . . . . . Stealth | -11 -10 -10 -10 -9 -8 -7 -7 -6 -6 -6 -6 -6 --------- Run | Scr Mat Min Exi Min Mat Fac Sto Fac Low Low Zio Dee Distress Signals 15 | . 4 . . . 2 3 4 2 . . . . Communications Jammed . | . . . . . . . . . . . . . Distress Signals . | . . . . . . . . . . . . . Times Spotted 262 | . 23 11 . . 26 51 35 29 4 15 . 68 Peak Tracking Total 32 | . 7 3 . . 8 7 5 5 3 11 . 32 Tactical Retreats 23 | . 3 2 . . 3 2 4 3 . 3 . 3 Traps | -11 -10 -10 -10 -9 -8 -7 -7 -6 -6 -6 -6 -6 ------- Run | Scr Mat Min Exi Min Mat Fac Sto Fac Low Low Zio Dee Traps Triggered 12 | . 1 . . . 2 4 2 3 . . . . Indirectly . | . . . . . . . . . . . . . Trap Hack Attempts . | . . . . . . . . . . . . . Triggered . | . . . . . . . . . . . . . Disarmed 2 | . 2 . . . . . . . . . . . Reprogrammed . | . . . . . . . . . . . . . Reused 12 | . . . . . 1 2 2 7 . . . . Traps Reconfigurated 104 | . . . . . 4 51 17 32 . . . . Traps Extracted 13 | . . . . . . 6 . 7 . . . . Installed 7 | . . . . . . . . 7 . . . . Triggered 14 | . . . . . 1 2 2 8 . 1 . . Most Traps Carried 6 | . . . . . . 6 6 6 6 . . . Machines | -11 -10 -10 -10 -9 -8 -7 -7 -6 -6 -6 -6 -6 ---------- Run | Scr Mat Min Exi Min Mat Fac Sto Fac Low Low Zio Dee Machines Disabled 15 | . . . . . . . 8 3 . . 3 1 Max in Single Turn 1 | . . . . . . . 1 1 . . 1 1 Garrison Access 3 | . . . . . . 1 1 1 . . . . Machines Sabotaged . | . . . . . . . . . . . . . Garrisons Compromised . | . . . . . . . . . . . . . Overloaded Fab Kills . | . . . . . . . . . . . . . Hacking | -11 -10 -10 -10 -9 -8 -7 -7 -6 -6 -6 -6 -6 --------- Run | Scr Mat Min Exi Min Mat Fac Sto Fac Low Low Zio Dee Machines Accessed 84 | . 10 . 2 . 8 31 10 21 1 1 . . Terminals 48 | . 7 . . . 6 16 8 11 . . . . Fabricators 3 | . . . . . . 2 . 1 . . . . Repair Stations 8 | . 1 . . . . 3 . 4 . . . . Recycling Units 10 | . 2 . . . . 5 1 2 . . . . Scanalyzers 6 | . . . . . 1 3 . 2 . . . . Garrison Access 5 | . . . . . 1 2 1 1 . . . . Total Hacks 237 | . 29 . 2 . 29 79 28 68 1 1 . . Successful 130 | . 13 . 2 . 15 45 13 40 1 1 . . Failed 105 | . 15 . . . 13 34 15 28 . . . . Catastrophic 16 | . 1 . . . 4 7 1 3 . . . . Database Lockouts 2 | . 1 . . . 1 . . . . . . . Manual 79 | . 17 . 1 . 11 21 9 19 . . 1 . Terminals 151 | . 20 . . . 23 47 21 40 . . . . Fabricators 4 | . . . . . . 2 . 2 . . . . Repair Stations 24 | . 5 . . . . 6 . 13 . . . . Recycling Units 26 | . 4 . . . . 15 4 3 . . . . Scanalyzers 18 | . . . . . 4 6 . 8 . . . . Garrison Access 10 | . . . . . 2 3 3 2 . . . . Terminal Hacks 56 | . 4 . 2 . 7 19 8 14 1 1 . . Record 4 | . . . 1 . . 1 . 2 . . . . Part Schematic 6 | . . . . . . 2 1 3 . . . . Robot Schematic 4 | . . . . . . 3 1 . . . . . Robot Analysis 10 | . 1 . . . 4 2 1 2 . . . . Prototype ID Bank 5 | . 1 . . . . 3 1 . . . . . Open Door 4 | . . . . . . . 2 . 1 1 . . Level Access Points 1 | . . . . . . . . 1 . . . . Emergency Access Points 1 | . . . . . . . . 1 . . . . Terminal Index 1 | . . . . . . . . 1 . . . . Alert Level 1 | . . . . . . . . 1 . . . . Unreport Threat 2 | . . . . . 1 . . 1 . . . . Locate Traps 11 | . 1 . . . 1 7 . 2 . . . . Disarm Traps 1 | . 1 . . . . . . . . . . . Recall Investigation 2 | . . . . . 1 . 1 . . . . . Recall Extermination 1 | . . . . . . 1 . . . . . . Hauler Manifests 1 | . . . . . . . 1 . . . . . EX-Prototype ID Bank 1 | . . . 1 . . . . . . . . . Fabricator Hacks 2 | . . . . . . 2 . . . . . . Network Status 1 | . . . . . . 1 . . . . . . Build 1 | . . . . . . 1 . . . . . . Repair Station Hacks 16 | . 4 . . . . 3 . 9 . . . . Scan Component 10 | . 2 . . . . 2 . 6 . . . . Repair 6 | . 2 . . . . 1 . 3 . . . . Recycling Unit Hacks 8 | . 1 . . . . 5 1 1 . . . . Retrieve Components 8 | . 1 . . . . 5 1 1 . . . . Scanalyzer 14 | . . . . . 4 3 . 7 . . . . Insert Component 8 | . . . . . 2 2 . 4 . . . . Analyze 6 | . . . . . 2 1 . 3 . . . . Garrison Access Hacks 4 | . . . . . 1 1 1 1 . . . . Unlock Access 1 | . . . . . 1 . . . . . . . Seal Access 3 | . . . . . . 1 1 1 . . . . Unauthorized Hacks 30 | . 4 . . . 3 12 3 8 . . . . Terminals 22 | . 3 . . . 3 8 1 7 . . . . Track 3 | . 1 . . . . 1 . 1 . . . . Assimilate 6 | . . . . . 1 3 . 2 . . . . Botnet 9 | . 1 . . . 1 3 1 3 . . . . Operators 4 | . 1 . . . 1 1 . 1 . . . . Fabricators . | . . . . . . . . . . . . . Repair Stations . | . . . . . . . . . . . . . Recycling Units 8 | . 1 . . . . 4 2 1 . . . . Reject 7 | . 1 . . . . 4 1 1 . . . . Mask 1 | . . . . . . . 1 . . . . . Scanalyzers . | . . . . . . . . . . . . . Garrison Access . | . . . . . . . . . . . . . Data Cores Recovered . | . . . . . . . . . . . . . Used . | . . . . . . . . . . . . . Hacking Detections 75 | . 10 . . . 8 29 8 20 . . . . Full Trace Events 4 | . . . . . 1 . 1 2 . . . . Feedback Events . | . . . . . . . . . . . . . Feedback Blocked . | . . . . . . . . . . . . . Robot Schematics Acquired 7 | . . . . . . 3 1 . . . 3 . Robots Built 3 | . . . . . . 3 . . . . . . Authchips . | . . . . . . . . . . . . . Time 134 | . . . . . . 134 . . . . . . Total Robot Build Rating 12 | . . . . . . 12 . . . . . . Part Schematics Acquired 27 | . . . . . 2 3 1 6 . . 15 . Parts Built . | . . . . . . . . . . . . . Authchips . | . . . . . . . . . . . . . Time . | . . . . . . . . . . . . . Total Part Build Rating . | . . . . . . . . . . . . . Parts Repaired 6 | . 2 . . . . 1 . 3 . . . . Time 225 | . 70 . . . . 22 . 133 . . . . Parts Recycled . | . . . . . . . . . . . . . Recycled Matter . | . . . . . . . . . . . . . Retrieved Matter . | . . . . . . . . . . . . . Retrieved Components 49 | . 6 . . . . 33 9 1 . . . . Parts Scanalyzed 7 | . . . . . 2 1 . 4 . . . . Part Schematics Acquired 6 | . . . . . 2 1 . 3 . . . . Parts Damaged 2 | . . . . . 1 . . 1 . . . . Bothacking | -11 -10 -10 -10 -9 -8 -7 -7 -6 -6 -6 -6 -6 ------------ Run | Scr Mat Min Exi Min Mat Fac Sto Fac Low Low Zio Dee Used RIF Installer . | . . . . . . . . . . . . . Robots Hacked . | . . . . . . . . . . . . . Non-combat . | . . . . . . . . . . . . . Combat . | . . . . . . . . . . . . . Robot Hacks Applied . | . . . . . . . . . . . . . Relay Couplers Released 3 | . . . . . . . . 3 . . . . Programmers 3 | . . . . . . . . 3 . . . . Fabnet Peak Effective % . | . . . . . . . . . . . . . Robots Rewired 2 | . . . . . . . . . . 2 . . Allies Hacked . | . . . . . . . . . . . . . Hacks Repelled . | . . . . . . . . . . . . . Allies | -11 -10 -10 -10 -9 -8 -7 -7 -6 -6 -6 -6 -6 -------- Run | Scr Mat Min Exi Min Mat Fac Sto Fac Low Low Zio Dee Total Allies 29 | . . 3 . . . 4 15 1 . 2 4 . Largest Group 10 | . . 2 1 . . 3 10 8 . 2 6 6 Highest-Rated Group 314 | . . 41 10 . . 60 190 128 . 40 314 314 Highest-Rated Ally 100 | . . 31 10 . . 20 100 16 . 20 96 96 Total Orders 17 | . . . . . . . 5 6 . 4 . 2 STAY 11 | . . . . . . . 3 4 . 2 . 2 FOLLOW 5 | . . . . . . . 2 1 . 2 . . RETURN 1 | . . . . . . . . 1 . . . . Ally Attacks 276 | . . 17 . . . 5 66 27 . . . 161 Total Damage 6737 | . . 61 . . . 121 1923 429 . . . 4203 Kills 51 | . . 1 . . . 1 16 2 . . . 31 Allies Corrupted 2 | . . . . . . . . 2 . . . . Allies Melted 1 | . . . . . . . . 1 . . . . Intel | -11 -10 -10 -10 -9 -8 -7 -7 -6 -6 -6 -6 -6 ------- Run | Scr Mat Min Exi Min Mat Fac Sto Fac Low Low Zio Dee Robot Analysis Total 10 | . 1 . . . 4 2 1 2 . . . . Derelict Logs Recovered 2 | . . 1 . . . . . . . 1 . . Drone Launches 3 | . . . . . . . . 3 . . . . Drone Recoveries 3 | . . . . . . . . 3 . . . . Exploration | -11 -10 -10 -10 -9 -8 -7 -7 -6 -6 -6 -6 -6 ------------- Run | Scr Mat Min Exi Min Mat Fac Sto Fac Low Low Zio Dee Turns Passed 22039 | 92 1633 1095 423 314 1948 5552 2439 3158 852 1182 2120 1231 Spaces Moved 13303 | 54 894 553 381 285 896 3248 1313 1918 601 737 1721 702 Core 11 | 4 . . . . . . . . . . . 7 Treads 6 | . . . . . . . . . . . . 6 Legs 1210 | 50 894 266 . . . . . . . . . . Wheels 12076 | . . 287 381 285 896 3248 1313 1918 601 737 1721 689 Hover . | . . . . . . . . . . . . . Flight . | . . . . . . . . . . . . . Fastest Speed 50 | 50 120 110 110 110 110 115 130 115 125 110 105 50 Average Speed 130 | 121 155 162 110 110 118 131 133 129 125 135 119 120 Slowest Speed 260 | 190 190 260 110 110 170 145 145 140 125 145 135 160 Overloaded Moves . | . . . . . . . . . . . . . Propulsion Burnouts . | . . . . . . . . . . . . . Robots Hopped . | . . . . . . . . . . . . . Cave-ins Triggered . | . . . . . . . . . . . . . Exploration Rate (%) 67 | 5 95 96 60 54 55 69 90 39 70 83 87 69 Regions Visited 12 Branch Regions 8 Pre-discovered Areas 1 | . . . 1 . . . . . . . . . Known Exits Taken 2 | . . . . . 1 . 1 . . . . . Unknown Exits Taken 10 | 1 1 1 1 1 . 1 . 1 1 1 1 . Scrap Searched 10 | . . 1 . . . . . . 4 1 4 . Spaces Dug 108 | . 1 . . . 3 13 24 1 24 32 . 10 Terrain Destroyed 181 | . 1 . . . 4 26 38 14 40 41 . 17 Melee 14 | . . . . . 3 11 . . . . . . Projectile 167 | . 1 . . . 1 15 38 14 40 41 . 17 AOE . | . . . . . . . . . . . . . Terrain Rammed . | . . . . . . . . . . . . . Walls Destroyed . | . . . . . . . . . . . . . Machines Disabled . | . . . . . . . . . . . . . Actions | -11 -10 -10 -10 -9 -8 -7 -7 -6 -6 -6 -6 -6 --------- Run | Scr Mat Min Exi Min Mat Fac Sto Fac Low Low Zio Dee Total 17246 | 71 1067 699 385 286 1697 4373 1911 2507 652 834 1774 990 Wait 2824 | . 102 91 . . 668 860 472 443 10 10 27 141 Move 13291 | 53 893 552 380 284 895 3247 1312 1917 600 736 1720 702 Hop . | . . . . . . . . . . . . . Pick Up 180 | 8 19 11 2 . 34 40 12 21 5 14 1 13 Fast Attach 74 | 7 1 2 . . 3 22 9 9 1 4 6 10 Attach 69 | . 3 4 . 1 16 12 3 9 1 7 . 13 Detach 12 | . . . . . 1 3 . . . . 1 7 Swap 136 | . 3 4 1 . 10 47 15 34 1 2 8 11 Drop 195 | . 10 8 2 1 24 59 21 23 6 8 7 26 Fire 368 | 3 36 27 . . 30 40 67 36 28 40 4 57 Melee 76 | . . . . . 16 43 . . . 7 . 10 Ram . | . . . . . . . . . . . . . Kick . | . . . . . . . . . . . . . Crush . | . . . . . . . . . . . . . Escape Stasis 8 | . . . . . . . . 8 . . . . Rewire 6 | . . . . . . . . . . 6 . . Trap 7 | . . . . . . . . 7 . . . . Miscellaneous . | . . . . . . . . . . . . . Route ------- -11/Scrapyard -10/Materials (discovered 4 exits: [*Mat x3] / [*Min]) -10/Mines (discovered 3 exits: [*Mat x2] / *Exi) -10/Exiles -9/Mines -8/Materials (discovered 3 exits: *Fac x2 / Gar) -7/Factory (discovered 5 exits: *Fac x3 / *Sto / [*Low]) -7/Storage -6/Factory (discovered 6 exits: *Fac x4 / *Low x2) -6/Lower Caves -6/Lower Caves -6/Zion (discovered 2 exits: [*Dee] / [*Pro]) -6/Deep Caves (discovered 1 exit: [*Pro]) History --------- Turn | Location | Event 52 | -11/Scrapyard | Discovered new exit (range 13) 93 | -11/Scrapyard | Entered Materials 166 | -10/Materials | Discovered new exit (range 15) 308 | -10/Materials | Build established: Mutant 440 | -10/Materials | Discovered new exit (range 8) 577 | -10/Materials | Discovered new exit (range 5) 693 | -10/Materials | Central database locked down 802 | -10/Materials | Discovered new exit (range 3) 984 | -10/Materials | Core integrity fell below 50% 1188 | -10/Materials | Repaired Imp. Terrain Scanner 1221 | -10/Materials | Repaired Particle Cannon 1726 | -10/Materials | Entered Mines 2000 | -10/Mines | Discovered new exit (range 4) 2276 | -10/Mines | Deemed a non-threat by the Exiles lab entrance 2276 | -10/Mines | Discovered new exit (range 5) 2307 | -10/Mines | Received a Rocket Launcher from a helpful Derelict 2347 | -10/Mines | Received a Mining Laser from a helpful Derelict 2422 | -10/Mines | Learned location of 1 exit from Materials 2471 | -10/Mines | Discovered new exit (range 4) 2496 | -10/Mines | Core integrity fell below 20% 2821 | -10/Mines | Entered Exiles 2821 | -10/Exiles | Accompanied by 1 ally 2852 | -10/Exiles | Met 8R-AWN 2870 | -10/Exiles | Met EX-HEX 2914 | -10/Exiles | Met EX-DEC 2918 | -10/Exiles | Learned location of Zion (-6) 2936 | -10/Exiles | Met EX-BIN 2951 | -10/Exiles | Aligned with FarCom system 2952 | -10/Exiles | Given EX-Vault access code 2977 | -10/Exiles | Opened EX-Vault 3008 | -10/Exiles | Warned to stay clear of 0b10 Research branches 3130 | -10/Exiles | Found Trap Reconfigurator 3234 | -10/Exiles | Discovered new exit (range 10) 3244 | -10/Exiles | Left Exiles lab with Trap Reconfigurator 3244 | -10/Exiles | Entered Mines 3456 | -9/Mines | Discovered new exit (range 4) 3558 | -9/Mines | Entered Materials 3558 | -8/Materials | Evolved 4 slots: Utility x4 3559 | -8/Materials | Identified exit to Factory 3646 | -8/Materials | Identified exit to Garrison 3888 | -8/Materials | Build established: Scavenger-Skirmisher 4115 | -8/Materials | Lost 3 parts (1n2w) 4115 | -8/Materials | Garrison activated, responded to threat 4266 | -8/Materials | Lost 3 parts (1u2w) 4515 | -8/Materials | Build established: Mutant 4855 | -8/Materials | Discovered exit to Factory (range 5) 5097 | -8/Materials | Central database locked down 5506 | -8/Materials | Entered Factory 5506 | -7/Factory | Evolved 2 slots: Utility x2 7458 | -7/Factory | Fabricated B-48 Gladiator (x3) 7529 | -7/Factory | Assembled infested ambush trap array 7712 | -7/Factory | Discovered new exit (range 4) 7915 | -7/Factory | Discovered new exit (range 7) 8458 | -7/Factory | Repaired Arm. Huge Wheel 8627 | -7/Factory | Identified exit to Factory 9917 | -7/Factory | Found Powered Armor 10195 | -7/Factory | Discovered exit to Factory (range 14) 10319 | -7/Factory | Discovered new exit (range 7) 10519 | -7/Factory | Discovered new exit (range 18) 11058 | -7/Factory | Entered Storage 11058 | -7/Storage | Accompanied by 1 ally 11082 | -7/Storage | Met 01-MTF 11155 | -7/Storage | Found Rocket Array 11858 | -7/Storage | First assault squad dispatched 11953 | -7/Storage | Discovered exit to Factory (range 19) 12099 | -7/Storage | Found Prototype Launcher 12099 | -7/Storage | Identified Gui. Missile Launcher 12104 | -7/Storage | Found Gui. Missile Launcher 13203 | -7/Storage | Assisted by bots powering up and referring to "LRC-V3" 13496 | -7/Storage | Build established: Commander-Mutant 13497 | -7/Storage | Entered Factory 13497 | -6/Factory | Accompanied by 8 allies 13497 | -6/Factory | Evolved 2 slots: Propulsion x1, Utility x1 13951 | -6/Factory | Repaired Remote Force Field 14218 | -6/Factory | Build established: Mutant 14463 | -6/Factory | Identified exit to Factory 14562 | -6/Factory | Garrison activated, responded to threat 14727 | -6/Factory | Repaired Imp. Medium Armor Plating 14879 | -6/Factory | Build established: Skirmisher 15049 | -6/Factory | Repaired Broken Arm. Huge Wheel 15422 | -6/Factory | Discovered new exit (range 7) 15933 | -6/Factory | Discovered new exit (range 12) 16584 | -6/Factory | Spotted B-75 Beast 16655 | -6/Factory | Entered Lower Caves 16914 | -6/Lower Caves | Encountered a Warlord checkpoint 16952 | -6/Lower Caves | Build established: Mutant 17107 | -6/Lower Caves | Attracted the attention of an 0b10 checkpoint 17306 | -6/Lower Caves | Discovered new exit (range 4) 17507 | -6/Lower Caves | Entered another Lower Caves area 17523 | -6/Lower Caves | Attracted the attention of an 0b10 outpost 17621 | -6/Lower Caves | Lost 4 parts (2u2w) 17775 | -6/Lower Caves | Learned Factory garrison access intel 17940 | -6/Lower Caves | Spotted B-75 Beast 18001 | -6/Lower Caves | Encountered a Warlord checkpoint 18566 | -6/Lower Caves | Discovered new exit (range 6) 18689 | -6/Lower Caves | Entered Zion 18689 | -6/Zion | Accompanied by 2 allies 18727 | -6/Zion | System corruption cleaned by Quarantine Array 18772 | -6/Zion | Gained Derelict followers 18790 | -6/Zion | Discovered new exit (range 13) 18873 | -6/Zion | Given A8's code to call for help 19025 | -6/Zion | Given the Hacking Drone Bay 19360 | -6/Zion | Received a visual enhancement algorithm 19432 | -6/Zion | Visited the Megawrench Repair Shop 19743 | -6/Zion | Megawrench repaired 13 parts 19862 | -6/Zion | Rebuked by Imprinter 20141 | -6/Zion | Found Prototype Device 20141 | -6/Zion | Identified Hacking Drone Bay 20536 | -6/Zion | Discovered new exit (range 3) 20536 | -6/Zion | Saw the warning signs outside the Deep Caves entrance 20762 | -6/Zion | Enhanced Grunt warped into view, answering call for help 20764 | -6/Zion | Enhanced Grunt warped into view, answering call for help 20809 | -6/Zion | Entered Deep Caves 20809 | -6/Deep Caves | Accompanied by 6 allies 21059 | -6/Deep Caves | Attacked by Z-Imprinter 21068 | -6/Deep Caves | Allies destroyed Z-Imprinter 21130 | -6/Deep Caves | Found Prototype Protection 21130 | -6/Deep Caves | Identified Zio. Weapon Casing 21186 | -6/Deep Caves | Found Prototype Device 21187 | -6/Deep Caves | Identified Zio. Metafield Generator 21413 | -6/Deep Caves | Found Prototype Protection 21413 | -6/Deep Caves | Identified Zio. Heavy Carapace 21560 | -6/Deep Caves | Z-Facility disabled 21681 | -6/Deep Caves | Discovered new exit (range 7) 21794 | -6/Deep Caves | Spotted as-85643 21816 | -6/Deep Caves | Allies destroyed as-85643 21831 | -6/Deep Caves | Triggered Deep Caves wall 21834 | -6/Deep Caves | Exposed GOLEM chamber 21854 | -6/Deep Caves | Found GOLEM Unit 21864 | -6/Deep Caves | Spotted AS-20068 21888 | -6/Deep Caves | Spotted AS-20136 21907 | -6/Deep Caves | Destroyed 34 combat bots 21930 | -6/Deep Caves | Destroyed AS-20068 21977 | -6/Deep Caves | Spotted as-31151 22008 | -6/Deep Caves | Core integrity fell below 50% 22035 | -6/Deep Caves | Core integrity fell below 20% 22040 | -6/Deep Caves | Destroyed by as-31151 with Assembled Focal Cannon Last Messages --------------- 21987_ Imp. Medium Armor Plating destroyed. 21989_ Dropped Zio. Biocell. 21990_ Extracted 274 energy. 21994_ Wall Chamber breached. 21994_ A GOLEM Unit tumbles out of the Wall Chamber. 21998_ GOLEM Unit springs to life. 21999_ as-55338 GOLEM Unit beginning Asb. Alloy Leg integration. 22003_ Med. Reactive Plating destroyed. 22003_ Zio. Light DM Reactor destroyed. 22003_ Asb. Focal Cannon destroyed. 22004_ Dropped Hcp. Storage Unit. 22005_ Dropped Adv. Particle Charger. 22007_ Discarded Asb. Focal Cannon. 22012_ Acquired Med. Treads. 22028_ Dropped Adv. Energy Well. 22031_ Med. Treads destroyed. 22031_ Zio. Laser-M destroyed. 22033_ Acquired Antimatter Cannon. 22035_ GOLEM Unit springs to life. 22036_ as-16492 GOLEM Unit beginning Asb. Alloy Leg integration. Map ----- +----------------------------------------------------+ | ????????????????????????????????????? | | ????????????????????????????????????? | | ????????????????????????????????????? | | ????????????????????????????????????? | | ????????????????????????????????????? | | ????????????????????????????????????? | | ????????????????????????????????????? | | ????????????????????????????????????? | | ??????????? ????????????????????????? | | ??????????? ? ????????????????????? | | ?????????"" ??????????????????? | | ????????" ????????????????? | | ????????" ???????????????? | | ????????" ?????????????? | | ????????? ???????????? | | ?????????G ????????????? | | ?????????G ! ##???????????? | | ?????????" ????????????? | | ?????????" %#?????????????? | | ????????"" l #?????????????? | | ??????### * ##??#?????????? | | ??"""""!G * # ????????? | | ??" % ! ##????????? | | ??" ]![!!! #????????? | | ??" !]!=*%! * ???????? | | ??" !!!@!*! ! !! #????????? | | ??" !![] ! b#????????? | | ??" !/ ! #???????? | | ??" ! !* g #???????? | | ??""""" !!! * #???????? | | ??????### / #???????# | | ??????# * #???????# | | ??????# G #???##### | | ??????#" * #???# | | ???????"" * * ##??# #?# | | ????????" = b / g #??# #?# | | ????????# ! / / = #??# #?# | | ????????" = #?## #?? | | ????????" = = ### ##? | | ????????" ** * = ## | | ????????""" ! # | | ????????" # | | ????????"" "# | | ????????" ## | | ????????"" ### ## | | ????????" # # #?# #? | | ????????" "### ## ## ##?## ##? | | ????????""" "###?# ## ####???####?? | | ?????????" ???#### #???????????? | | ?????????######????????#????????????? | +----------------------------------------------------+ Best States ------------- Heat Dissipation 89 Energy Generation 27 Energy Capacity 700 Matter Stores 300 Matter Capacity 300 Sight Range 20 Terrain Scan Range 16 Terrain Scan Density 85 Base Temperature (-) 150 Armor Coverage 1800 Resistance: KI 30 Resistance: TH 20 Resistance: EM 25 Core Shielding 20 Utility Shielding 66 Weapon Shielding 100 Evasion (%) 55 Targeting Accuracy 8 Core Analysis 6 Recoil Reduction 1 Particle Charging 25 Kinecelleration 30 Offensive Hacking 12 Trap Extractor Capacity 6 Item Schematics ----------------- Fission Core | -8/Materials | Scanalyzed Adv. EMP Blaster | -8/Materials | Scanalyzed Hvy. Plasma Cannon | -7/Factory | Hacked Focal Shield | -7/Factory | Hacked Powered Armor | -7/Factory | Scanalyzed Lyr. Medium Armor Plating | -7/Storage | Hacked Cld. Particle Cannon | -6/Factory | Scanalyzed Hrd. Heavy Armor Plating | -6/Factory | Scanalyzed Antimatter Cannon | -6/Factory | Scanalyzed Adv. Heat Sink | -6/Factory | Hacked Adv. Trap Scanner | -6/Factory | Hacked Centrium Wheel | -6/Factory | Hacked Imp. Shock Absorption System | -6/Zion | Archive Imp. Proton Missile Launcher | -6/Zion | Archive Matter Compressor | -6/Zion | Archive Lrn. Proton Cannon | -6/Zion | Archive Imp. Thermal Generator | -6/Zion | Archive Imp. Kinecellerator | -6/Zion | Archive Plasma Rifle | -6/Zion | Archive Imp. Recalibrator | -6/Zion | Archive Angular Momentum Engine | -6/Zion | Archive Railgun | -6/Zion | Archive Remote Force Field | -6/Zion | Archive Imp. Medium Treads | -6/Zion | Archive Coil Gun | -6/Zion | Archive Enh. Gauss Cannon | -6/Zion | Archive Imp. KE Penetrator | -6/Zion | Archive Robot Schematics ------------------ L-41 Fighter | -7/Factory | Hacked R-06 Scavenger | -7/Factory | Hacked H-55 Commando | -7/Factory | Hacked A-02 Transporter | -7/Storage | Hacked O-24 Administrator | -6/Zion | Archive S-27 Virus | -6/Zion | Archive T-07 Excavator | -6/Zion | Archive Fabricated ------------ B-48 Gladiator | x3 | -7/Factory | Preloaded Alien Tech Used ----------------- None Achievements -------------- Are We The Baddies? Killing Spree That's One Door That Should Stay Closed Challenges ------------ None Game ------ Seed CatalystBoreEdition Manual? 0 Play Time 05:12:52 Cumulative 347.7 hours Start 2023.01.17 @ 20:58:13 End 2023.01.18 @ 14:41:33 Sessions 1 Manual Loads 0 Difficulty Rogue Special Mode None Game No. 281 Rogue 281 Adventurer 0 Explorer 0 Win Type - Total 0 Types 0/0/0/0/0/0/0/0/0 Lore% 57 Gallery% 62 Achievement% 45 Wizard Run 0 Options --------- ASCII 0 Keyboard 0 Movement Mouse Keybinds 0 Fullscreen 1 Font 16/SmallcapsGlow Map View 75x55 Tactical HUD 1 Map Filters NONE Filters NONE Steam 1 RUN: 8911c63b-771e-42a5-a27a-05d454b706d8